[Event "DVM U12w 2024"]
[Site "Bad Homburg"]
[Date "2024.12.29"]
[Round "6"]
[White "Reuber, Ella"]
[Black "Doescher, Nayla"]
[Result "1-0"]
[ECO "D38"]
[WhiteElo "1188"]
[BlackElo "1437"]
[Annotator "NA RC"]
[PlyCount "115"]
[EventDate "2024.12.23"]
[EventType "team-tourn"]
[EventRounds "7"]
[EventCountry "GER"]
[SourceTitle "playchess.com"]
[Source "ChessBase"]
[SourceQuality "1"]
[TimeControl "40/5400+30:1800+30"]

1. d4 {[%emt 0:00:01]} d5 {[%emt 0:00:01]} 2. c4 {[%emt 0:00:05]} e6 {[%emt 0:00:11]} 3. Nf3 {[%emt 0:00:08]} Nf6 {[%emt 0:00:50]} 4. Nc3 {[%emt 0:00:10]} Bb4 {[%emt 0:00:49]} 5. Bg5 {[%emt 0:00:46]} Bxc3+ {[%emt 0:01:30]} 6. bxc3 {[%emt 0:00:12]} h6 {[%emt 0:02:28]} 7. Bxf6 {[%emt 0:01:06]} Qxf6 {[%emt 0:00:15]} 8. e3 {[%emt 0:00:36]} O-O {[%emt 0:01:00]} 9. cxd5 {[%emt 0:00:20]} exd5 {[%emt 0:01:28]} 10. Be2 {[%emt 0:01:38]} Nd7 {[%emt 0:03:12]} 11. O-O {[%emt 0:02:23]} b6 {[%emt 0:02:18]} 12. Rb1 {[%emt 0:03:04]} Rd8 {[%emt 0:05:06]} 13. Qc2 {[%emt 0:03:04]} Nf8 {[%emt 0:01:26]} 14. Rfe1 {[%emt 0:03:36]} Be6 {[%emt 0:03:38]} 15. Bb5 {[%emt 0:03:34]} Rac8 {[%emt 0:04:10]} 16. Ne5 {[%emt 0:02:52]} Bf5 {[%emt 0:10:06]} 17. Bd3 {[%emt 0:00:57]} Bxd3 {[%emt 0:02:01]} 18. Qxd3 {[%emt 0:00:53]} c5 {[%emt 0:06:16]} 19. Rbc1 {[%emt 0:04:19]} c4 {[%emt 0:05:03]} 20. Qe2 {[%emt 0:02:52]} Ng6 {[%emt 0:05:18]} 21. Nxg6 {[%emt 0:02:59]} Qxg6 {[%emt 0:00:15]} 22. Qf3 {[%emt 0:00:31]} Qe4 {[%emt 0:05:06]} 23. Qxe4 {[%emt 0:02:41]} dxe4 {[%emt 0:00:17]} 24. Rb1 {[%emt 0:00:05]} Rd5 {[%emt 0:03:25]} 25. Rb4 {[%emt 0:04:17]} Ra5 {[%emt 0:05:55]} 26. Rb2 {[%emt 0:01:24]} Ra3 {[%emt 0:03:12]} 27. Rc2 {[%emt 0:02:08]} Rd8 {[%emt 0:02:40]} 28. Rd1 {[%emt 0:00:58]} Rd5 {[%emt 0:02:08]} 29. h3 {[%emt 0:00:49]} Kf8 {[%emt 0:03:59]} 30. Kh2 {[%emt 0:01:38]} g5 {[%emt 0:02:41]} 31. f3 {[%emt 0:01:15]} exf3 {[%emt 0:01:45]} 32. gxf3 {[%emt 0:00:05]} f6 {[%emt 0:06:51]} 33. e4 {[%emt 0:00:35]} Rd8 {[%emt 0:00:54]} 34. Kg3 {[%emt 0:00:17]} Kf7 {[%emt 0:01:25]} 35. Kg4 {[%emt 0:00:53]} Kg6 {[%emt 0:00:19]} 36. d5 {[%emt 0:01:04]} Ra5 {[%emt 0:03:21]} 37. f4 {[%emt 0:01:26]} h5+ {[%emt 0:05:11]} 38. Kf3 {[%emt 0:00:43]} Re8 {[%emt 0:00:59]} 39. fxg5 {[%emt 0:00:31]} fxg5 {[%emt 0:00:23]} 40. Rg2 {[%emt 0:01:18]} Ra3 {[%emt 0:01:50]} 41. Rc1 {[%emt 0:30:18]} h4 {[%emt 0:30:45]} 42. Ke3 {[%emt 0:00:35]} b5 {[%emt 0:00:00]} 43. Kd4 {[%emt 0:00:00]} Ra6 {[%emt 0:00:00]} 44. Rcg1 {[%emt 0:00:00]} Kf6 {[%emt 0:00:00]} 45. Rxg5 {[%emt 0:00:00]} Rxa2 {[%emt 0:00:00]} 46. Rf5+ {[%emt 0:00:00]} Ke7 {[%emt 0:00:00]} 47. Re5+ {[%emt 0:00:00]} Kd8 {[%emt 0:00:00]} 48. Rxe8+ {[%emt 0:00:00]} Kxe8 {[%emt 0:00:00]} 49. Rg7 {[%emt 0:00:00]} a6 {[%emt 0:00:00]} 50. d6 {[%emt 0:00:00]} a5 {[%emt 0:00:00]} 51. Kc5 {[%emt 0:00:00]} a4 {[%emt 0:00:00]} 52. d7+ {[%emt 0:00:00]} Kd8 {[%emt 0:00:00]} 53. Kc6 {[%emt 0:00:00]} Rd2 {[%emt 0:00:10]} 54. e5 {[%emt 0:00:00]} a3 {[%emt 0:03:15]} 55. e6 {[%emt 0:00:00]} Rxd7 {[%emt 0:02:25]} 56. Rxd7+ {[%emt 0:00:00]} Ke8 {[%emt 0:00:19]} 57. Kxb5 {[%emt 0:00:00]} a2 {[%emt 0:01:02]} 58. Ra7 {[%emt 0:00:00]} 1-0

[Event "DVM U12w 2024"]
[Site "Bad Homburg"]
[Date "2024.12.29"]
[Round "6"]
[White "Andreeva, Katharina"]
[Black "Werner, Amelie"]
[Result "1/2-1/2"]
[ECO "B22"]
[WhiteElo "1164"]
[BlackElo "1525"]
[Annotator "NA RC"]
[PlyCount "84"]
[EventDate "2024.12.23"]
[EventType "team-tourn"]
[EventRounds "7"]
[EventCountry "GER"]
[SourceTitle "playchess.com"]
[Source "ChessBase"]
[SourceQuality "1"]
[TimeControl "40/5400+30:1800+30"]

1. e4 {[%emt 0:00:02]} c5 {[%emt 0:00:05]} 2. d4 {[%emt 0:00:06]} cxd4 {[%emt 0:00:04]} 3. c3 {[%emt 0:00:11]} d5 {[%emt 0:00:05]} 4. exd5 {[%emt 0:00:19]} Qxd5 {[%emt 0:00:03]} 5. cxd4 {[%emt 0:00:14]} e6 {[%emt 0:00:05]} 6. Nc3 {[%emt 0:00:31]} Qd8 {[%emt 0:00:04]} 7. Nf3 {[%emt 0:00:31]} Nf6 {[%emt 0:00:15]} 8. Bf4 {[%emt 0:00:49]} Bb4 {[%emt 0:01:17]} 9. Qa4+ {[%emt 0:03:48]} Nc6 {[%emt 0:00:54]} 10. Bb5 {[%emt 0:02:26]} Be7 {[%emt 0:02:25]} 11. Ne5 {[%emt 0:02:25]} O-O {[%emt 0:01:50]} 12. Nxc6 {[%emt 0:02:16]} bxc6 {[%emt 0:01:15]} 13. Bxc6 {[%emt 0:00:51]} Bd7 {[%emt 0:00:06]} 14. Bxd7 {[%emt 0:05:00]} Qxd7 {[%emt 0:00:33]} 15. Qxd7 {[%emt 0:01:03]} Nxd7 {[%emt 0:00:12]} 16. O-O {[%emt 0:02:14]} Nf6 {[%emt 0:04:35]} 17. Rfe1 {[%emt 0:02:01]} Bb4 {[%emt 0:04:54]} 18. Rac1 {[%emt 0:01:23]} Nd5 {[%emt 0:00:44]} 19. Bd2 {[%emt 0:05:05]} Rac8 {[%emt 0:04:53]} 20. Rc2 {[%emt 0:03:32]} Rc4 {[%emt 0:06:51]} 21. Rec1 {[%emt 0:02:17]} Rxd4 {[%emt 0:02:25]} 22. a3 {[%emt 0:01:29]} Bxc3 {[%emt 0:03:55]} 23. Bxc3 {[%emt 0:00:57]} Nxc3 {[%emt 0:02:33]} 24. Rxc3 {[%emt 0:00:38]} Rfd8 {[%emt 0:00:06]} 25. Re3 {[%emt 0:09:52]} Rd1+ {[%emt 0:00:13]} 26. Re1 {[%emt 0:00:14]} R1d2 {[%emt 0:01:10]} 27. Rb1 {[%emt 0:02:15]} Kf8 {[%emt 0:01:39]} 28. Rec1 {[%emt 0:00:35]} h6 {[%emt 0:00:25]} 29. b4 {[%emt 0:00:48]} Ra2 {[%emt 0:00:52]} 30. Rb3 {[%emt 0:01:46]} g5 {[%emt 0:02:38]} 31. b5 {[%emt 0:01:33]} Rb8 {[%emt 0:01:21]} 32. g3 {[%emt 0:02:48]} a6 {[%emt 0:01:04]} 33. b6 {[%emt 0:01:18]} Rd2 {[%emt 0:09:06]} 34. b7 {[%emt 0:03:59]} Rdd8 {[%emt 0:00:16]} 35. Rc6 {[%emt 0:01:23]} Ke7 {[%emt 0:02:25]} 36. Rxa6 {[%emt 0:06:54]} Kd7 {[%emt 0:05:14]} 37. Rab6 {[%emt 0:01:28]} Kc7 {[%emt 0:00:31]} 38. a4 {[%emt 0:00:40]} Rd5 {[%emt 0:04:34]} 39. R6b4 {[%emt 0:07:34]} Kc6 {[%emt 0:05:10]} 40. Rc3+ {[%emt 0:06:08]} Rc5 {[%emt 0:00:46]} 41. Rxc5+ {[%emt 0:30:41]} Kxc5 {[%emt 0:30:11]} 42. Rb2 {[%emt 0:01:01]} Kc6 {[%emt 0:01:24]} 1/2-1/2

[Event "DVM U12w 2024"]
[Site "Bad Homburg"]
[Date "2024.12.29"]
[Round "6"]
[White "Nehrukumar, Rithika"]
[Black "Albrecht, Sidney Jenna"]
[Result "1/2-1/2"]
[ECO "B34"]
[WhiteElo "1147"]
[BlackElo "1483"]
[Annotator "NA RC"]
[PlyCount "51"]
[EventDate "2024.12.23"]
[EventType "team-tourn"]
[EventRounds "7"]
[EventCountry "GER"]
[SourceTitle "playchess.com"]
[Source "ChessBase"]
[SourceQuality "1"]
[TimeControl "40/5400+30:1800+30"]

1. e4 {[%emt 0:00:03]} c5 {[%emt 0:00:04]} 2. Nf3 {[%emt 0:00:07]} Nc6 {[%emt 0:00:06]} 3. d4 {[%emt 0:00:10]} cxd4 {[%emt 0:00:05]} 4. Nxd4 {[%emt 0:00:07]} g6 {[%emt 0:00:07]} 5. Be3 {[%emt 0:01:22]} Bg7 {[%emt 0:00:08]} 6. Nxc6 {[%emt 0:00:38]} bxc6 {[%emt 0:00:12]} 7. Bd4 {[%emt 0:00:11]} e5 {[%emt 0:03:00]} 8. Be3 {[%emt 0:00:18]} Nf6 {[%emt 0:01:13]} 9. Nc3 {[%emt 0:00:51]} O-O {[%emt 0:00:53]} 10. Bc4 {[%emt 0:00:20]} Bb7 {[%emt 0:01:13]} 11. Qd6 {[%emt 0:06:33]} Ne8 {[%emt 0:05:26]} 12. Qd2 {[%emt 0:00:46]} d6 {[%emt 0:06:23]} 13. O-O {[%emt 0:01:45]} Nf6 {[%emt 0:03:04]} 14. Bb3 {[%emt 0:00:50]} d5 {[%emt 0:06:27]} 15. exd5 {[%emt 0:02:49]} cxd5 {[%emt 0:00:16]} 16. Bc5 {[%emt 0:00:29]} Re8 {[%emt 0:00:54]} 17. Rfe1 {[%emt 0:04:35]} Qa5 {[%emt 0:12:51]} 18. Bd6 {[%emt 0:02:17]} d4 {[%emt 0:03:45]} 19. Nb1 {[%emt 0:01:10]} Qxd2 {[%emt 0:00:42]} 20. Nxd2 {[%emt 0:00:03]} Nh5 {[%emt 0:02:20]} 21. Rad1 {[%emt 0:01:48]} Rad8 {[%emt 0:03:35]} 22. Bc5 {[%emt 0:00:35]} a6 {[%emt 0:02:06]} 23. Nc4 {[%emt 0:00:20]} Nf4 {[%emt 0:06:09]} 24. f3 {[%emt 0:02:08]} d3 {[%emt 0:07:02]} 25. Bd6 {[%emt 0:03:19]} Bd5 {[%emt 0:03:34]} 26. cxd3 {[%emt 0:02:35]} 1/2-1/2

[Event "DVM U12w 2024"]
[Site "Bad Homburg"]
[Date "2024.12.29"]
[Round "6"]
[White "Du, Vivian"]
[Black "Ising, Svea"]
[Result "1-0"]
[ECO "C54"]
[WhiteElo "1144"]
[BlackElo "1221"]
[Annotator "NA RC"]
[PlyCount "43"]
[EventDate "2024.12.23"]
[EventType "team-tourn"]
[EventRounds "7"]
[EventCountry "GER"]
[SourceTitle "playchess.com"]
[Source "ChessBase"]
[SourceQuality "1"]
[TimeControl "40/5400+30:1800+30"]

1. e4 {[%emt 0:00:02]} e5 {[%emt 0:00:06]} 2. Nf3 {[%emt 0:00:07]} Nc6 {[%emt 0:00:06]} 3. Bc4 {[%emt 0:00:12]} Bc5 {[%emt 0:00:06]} 4. d3 {[%emt 0:00:15]} h6 {[%emt 0:00:18]} 5. c3 {[%emt 0:00:45]} Nf6 {[%emt 0:00:23]} 6. d4 {[%emt 0:01:59]} exd4 {[%emt 0:00:15]} 7. cxd4 {[%emt 0:00:07]} Bb4+ {[%emt 0:00:13]} 8. Nc3 {[%emt 0:01:14]} Nxe4 {[%emt 0:00:30]} 9. Qb3 {[%emt 0:01:15]} Bxc3+ {[%emt 0:01:05]} 10. bxc3 {[%emt 0:00:10]} O-O {[%emt 0:00:10]} 11. O-O {[%emt 0:00:39]} d6 {[%emt 0:04:50]} 12. h3 {[%emt 0:01:04]} Na5 {[%emt 0:03:05]} 13. Qa4 {[%emt 0:01:42]} Nxc4 {[%emt 0:00:51]} 14. Qxc4 {[%emt 0:00:09]} d5 {[%emt 0:01:53]} 15. Qb3 {[%emt 0:01:09]} Re8 {[%emt 0:02:44]} 16. Bf4 {[%emt 0:01:55]} c5 {[%emt 0:05:17]} 17. Rad1 {[%emt 0:01:25]} Qf6 {[%emt 0:04:33]} 18. Be5 {[%emt 0:01:15]} c4 {[%emt 0:06:33]} 19. Qb5 {[%emt 0:03:04]} Qg6 {[%emt 0:01:26]} 20. Qxe8+ {[%emt 0:00:28]} Kh7 {[%emt 0:00:40]} 21. Nh4 {[%emt 0:03:36]} Qh5 {[%emt 0:05:05]} 22. Qe7 {[%emt 0:01:31]} 1-0

[Event "DVM U12w 2024"]
[Site "Bad Homburg"]
[Date "2024.12.29"]
[Round "6"]
[White "Weißleder, Emia"]
[Black "Haas, Valentina"]
[Result "1-0"]
[ECO "D00"]
[WhiteElo "1118"]
[BlackElo "974"]
[Annotator "NA"]
[PlyCount "93"]
[EventDate "2024.12.23"]
[EventType "team-tourn"]
[EventRounds "7"]
[EventCountry "GER"]
[SourceTitle "playchess.com"]
[Source "ChessBase"]
[SourceQuality "1"]
[TimeControl "40/5400+30:1800+30"]

1. d4 {[%emt 0:00:02]} d5 {[%emt 0:00:10]} 2. Nc3 {[%emt 0:00:06]} Nf6 {[%emt 0:00:08]} 3. Bf4 {[%emt 0:00:08]} e6 {[%emt 0:00:08]} 4. f3 {[%emt 0:00:20]} Bd6 {[%emt 0:00:14]} 5. Bxd6 {[%emt 0:00:43]} Qxd6 {[%emt 0:00:15]} 6. g4 {[%emt 0:00:08]} a6 {[%emt 0:00:39]} 7. h4 {[%emt 0:00:13]} c5 {[%emt 0:00:33]} 8. e3 {[%emt 0:00:43]} Bd7 {[%emt 0:01:07]} 9. Qd2 {[%emt 0:00:40]} h6 {[%emt 0:00:44]} 10. O-O-O {[%emt 0:00:49]} c4 {[%emt 0:00:33]} 11. Nh3 {[%emt 0:01:59]} Bb5 {[%emt 0:01:57]} 12. g5 {[%emt 0:03:26]} Nh5 {[%emt 0:01:32]} 13. Rg1 {[%emt 0:01:55]} Ng3 {[%emt 0:01:14]} 14. gxh6 {[%emt 0:02:04]} Rxh6 {[%emt 0:00:39]} 15. Nf4 {[%emt 0:01:17]} Nxf1 {[%emt 0:01:13]} 16. Rdxf1 {[%emt 0:00:35]} g6 {[%emt 0:01:32]} 17. h5 {[%emt 0:01:06]} gxh5 {[%emt 0:00:37]} 18. Rg8+ {[%emt 0:00:40]} Ke7 {[%emt 0:00:17]} 19. Qg2 {[%emt 0:01:06]} Be8 {[%emt 0:00:34]} 20. Qg5+ {[%emt 0:00:50]} Rf6 {[%emt 0:00:22]} 21. Qxh5 {[%emt 0:01:03]} Rf5 {[%emt 0:00:43]} 22. Qh8 {[%emt 0:01:27]} Nc6 {[%emt 0:00:47]} 23. Rfg1 {[%emt 0:01:20]} e5 {[%emt 0:02:05]} 24. Nfxd5+ {[%emt 0:01:12]} Ke6 {[%emt 0:01:41]} 25. Rxe8+ {[%emt 0:01:03]} Rxe8 {[%emt 0:00:14]} 26. Qxe8+ {[%emt 0:00:15]} Ne7 {[%emt 0:00:13]} 27. Nxe7 {[%emt 0:02:22]} Qxe7 {[%emt 0:00:16]} 28. Qxe7+ {[%emt 0:00:12]} Kxe7 {[%emt 0:00:08]} 29. d5 {[%emt 0:00:54]} Rxf3 {[%emt 0:00:49]} 30. Rd1 {[%emt 0:00:42]} Rxe3 {[%emt 0:00:30]} 31. d6+ {[%emt 0:00:15]} Kd7 {[%emt 0:00:13]} 32. Nd5 {[%emt 0:00:48]} Rg3 {[%emt 0:00:24]} 33. Nf6+ {[%emt 0:00:27]} Kd8 {[%emt 0:00:22]} 34. d7 {[%emt 0:00:38]} Rg6 {[%emt 0:00:17]} 35. Ne4 {[%emt 0:01:28]} Rc6 {[%emt 0:00:27]} 36. Ng5 {[%emt 0:01:01]} Rf6 {[%emt 0:00:29]} 37. Rd5 {[%emt 0:00:40]} Rf5 {[%emt 0:00:35]} 38. Ne4 {[%emt 0:00:51]} f6 {[%emt 0:01:27]} 39. Nc5 {[%emt 0:00:25]} Rf1+ {[%emt 0:00:16]} 40. Kd2 {[%emt 0:00:55]} Rf2+ {[%emt 0:00:22]} 41. Ke3 {[%emt 0:30:33]} Rxc2 {[%emt 0:31:14]} 42. Nxb7+ {[%emt 0:00:22]} Kc7 {[%emt 0:00:25]} 43. d8=Q+ {[%emt 0:00:14]} Kxb7 {[%emt 0:00:13]} 44. Qd7+ {[%emt 0:00:22]} Kb6 {[%emt 0:00:40]} 45. Qe6+ {[%emt 0:00:15]} Kc7 {[%emt 0:00:18]} 46. Rd7+ {[%emt 0:00:09]} Kc8 {[%emt 0:00:28]} 47. Qe8# {[%emt 0:00:11]} 1-0

[Event "DVM U12w 2024"]
[Site "Bad Homburg"]
[Date "2024.12.29"]
[Round "6"]
[White "Subocz, Emma"]
[Black "Scharfenberg, Leah"]
[Result "1/2-1/2"]
[ECO "B50"]
[WhiteElo "1106"]
[BlackElo "1087"]
[Annotator "NA RC"]
[PlyCount "174"]
[EventDate "2024.12.23"]
[EventType "team-tourn"]
[EventRounds "7"]
[EventCountry "GER"]
[SourceTitle "playchess.com"]
[Source "ChessBase"]
[SourceQuality "1"]
[TimeControl "40/5400+30:1800+30"]

1. e4 {[%emt 0:00:01]} c5 {[%emt 0:00:03]} 2. c3 {[%emt 0:00:11]} Nf6 {[%emt 0:00:41]} 3. d3 {[%emt 0:00:36]} d6 {[%emt 0:00:19]} 4. Nf3 {[%emt 0:00:27]} g6 {[%emt 0:00:16]} 5. d4 {[%emt 0:00:10]} cxd4 {[%emt 0:00:10]} 6. Qxd4 {[%emt 0:00:58]} Nc6 {[%emt 0:00:41]} 7. Qd3 {[%emt 0:00:12]} Bg7 {[%emt 0:00:33]} 8. Be2 {[%emt 0:01:40]} O-O {[%emt 0:01:31]} 9. O-O {[%emt 0:00:40]} a6 {[%emt 0:00:57]} 10. Bg5 {[%emt 0:01:13]} b5 {[%emt 0:00:53]} 11. Nbd2 {[%emt 0:00:29]} Bb7 {[%emt 0:00:26]} 12. Rad1 {[%emt 0:03:30]} Rc8 {[%emt 0:01:47]} 13. Qc2 {[%emt 0:00:38]} Qd7 {[%emt 0:01:47]} 14. h3 {[%emt 0:02:30]} Rfd8 {[%emt 0:04:40]} 15. Nb3 {[%emt 0:01:21]} Qe6 {[%emt 0:04:39]} 16. Bd3 {[%emt 0:01:07]} Ne5 {[%emt 0:08:04]} 17. Nxe5 {[%emt 0:01:04]} Qxe5 {[%emt 0:00:37]} 18. f4 {[%emt 0:00:31]} Qe6 {[%emt 0:00:44]} 19. a3 {[%emt 0:04:27]} Bxe4 {[%emt 0:01:30]} 20. Nd4 {[%emt 0:02:35]} Qd5 {[%emt 0:01:02]} 21. Bxe4 {[%emt 0:01:05]} Nxe4 {[%emt 0:02:09]} 22. Bxe7 {[%emt 0:00:59]} Re8 {[%emt 0:02:16]} 23. Nb3 {[%emt 0:03:23]} Qe6 {[%emt 0:01:35]} 24. Bh4 {[%emt 0:01:56]} Qd7 {[%emt 0:03:05]} 25. Rfe1 {[%emt 0:04:12]} Qb7 {[%emt 0:02:17]} 26. Nd2 {[%emt 0:04:04]} Nxd2 {[%emt 0:00:33]} 27. Qxd2 {[%emt 0:00:42]} Qb6+ {[%emt 0:00:37]} 28. Bf2 {[%emt 0:00:44]} Qc7 {[%emt 0:00:15]} 29. Qxd6 {[%emt 0:00:46]} Qxd6 {[%emt 0:00:18]} 30. Rxd6 {[%emt 0:00:18]} Rxe1+ {[%emt 0:00:23]} 31. Bxe1 {[%emt 0:00:10]} Re8 {[%emt 0:00:18]} 32. Bd2 {[%emt 0:01:24]} Re2 {[%emt 0:00:35]} 33. Rd8+ {[%emt 0:00:38]} Bf8 {[%emt 0:00:09]} 34. f5 {[%emt 0:01:09]} Kg7 {[%emt 0:00:31]} 35. fxg6 {[%emt 0:00:45]} hxg6 {[%emt 0:00:11]} 36. b4 {[%emt 0:01:06]} Be7 {[%emt 0:00:33]} 37. Rd7 {[%emt 0:01:53]} Bf6 {[%emt 0:00:24]} 38. Kf1 {[%emt 0:02:08]} Re4 {[%emt 0:00:33]} 39. Rd6 {[%emt 0:01:50]} Re6 {[%emt 0:00:25]} 40. Rxe6 {[%emt 0:00:22]} fxe6 {[%emt 0:00:10]} 41. Kf2 {[%emt 0:30:42]} Bh4+ {[%emt 0:30:21]} 42. g3 {[%emt 0:00:19]} Be7 {[%emt 0:00:17]} 43. Kf3 {[%emt 0:00:25]} Kf6 {[%emt 0:00:12]} 44. h4 {[%emt 0:00:39]} Ke5 {[%emt 0:00:38]} 45. Be3 {[%emt 0:01:13]} Kd5 {[%emt 0:00:35]} 46. Bd4 {[%emt 0:00:27]} Kc4 {[%emt 0:00:35]} 47. Kf4 {[%emt 0:02:37]} Kd5 {[%emt 0:00:30]} 48. Ke3 {[%emt 0:01:49]} e5 {[%emt 0:01:03]} 49. Bc5 {[%emt 0:03:39]} Bxc5+ {[%emt 0:00:16]} 50. bxc5 {[%emt 0:00:06]} Kxc5 {[%emt 0:00:05]} 51. Ke4 {[%emt 0:00:05]} Kc4 {[%emt 0:00:47]} 52. Kxe5 {[%emt 0:00:33]} Kxc3 {[%emt 0:00:08]} 53. Kf6 {[%emt 0:00:11]} Kb3 {[%emt 0:00:19]} 54. Kxg6 {[%emt 0:00:07]} Kxa3 {[%emt 0:00:09]} 55. h5 {[%emt 0:00:11]} b4 {[%emt 0:00:06]} 56. h6 {[%emt 0:00:04]} b3 {[%emt 0:00:10]} 57. h7 {[%emt 0:00:22]} b2 {[%emt 0:00:04]} 58. h8=Q {[%emt 0:00:19]} b1=Q+ {[%emt 0:00:11]} 59. Kg5 {[%emt 0:02:18]} Qc1+ {[%emt 0:00:24]} 60. Kg4 {[%emt 0:00:19]} Qd1+ {[%emt 0:00:21]} 61. Kf4 {[%emt 0:00:17]} Qf1+ {[%emt 0:00:17]} 62. Kg4 {[%emt 0:00:18]} Qd1+ {[%emt 0:00:22]} 63. Kf4 {[%emt 0:00:09]} Qd2+ {[%emt 0:00:40]} 64. Kg4 {[%emt 0:00:09]} Qd1+ {[%emt 0:00:16]} 65. Kf4 {[%emt 0:00:07]} Qc1+ {[%emt 0:00:46]} 66. Kg4 {[%emt 0:00:07]} Qd1+ {[%emt 0:00:13]} 67. Kf4 {[%emt 0:00:06]} Qf1+ {[%emt 0:00:49]} 68. Kg4 {[%emt 0:00:26]} Qc4+ {[%emt 0:00:48]} 69. Kh3 {[%emt 0:00:31]} Qe6+ {[%emt 0:00:20]} 70. Kh4 {[%emt 0:00:31]} Qe4+ {[%emt 0:00:20]} 71. Kg5 {[%emt 0:00:31]} Qe3+ {[%emt 0:00:25]} 72. Kg4 {[%emt 0:00:18]} Qe6+ {[%emt 0:00:29]} 73. Kh4 {[%emt 0:00:29]} Qe4+ {[%emt 0:00:42]} 74. Kg5 {[%emt 0:00:16]} Qe3+ {[%emt 0:00:22]} 75. Kg4 {[%emt 0:00:10]} Qe2+ {[%emt 0:00:31]} 76. Kf4 {[%emt 0:01:14]} Qc4+ {[%emt 0:01:07]} 77. Kg5 {[%emt 0:00:52]} Qd5+ {[%emt 0:00:20]} 78. Kg4 {[%emt 0:00:10]} Qe4+ {[%emt 0:00:38]} 79. Kg5 {[%emt 0:00:35]} Qe3+ {[%emt 0:00:28]} 80. Kg4 {[%emt 0:00:06]} Qe2+ {[%emt 0:00:15]} 81. Kg5 {[%emt 0:00:17]} Qb5+ {[%emt 0:01:24]} 82. Kg4 {[%emt 0:01:39]} Qd7+ {[%emt 0:00:30]} 83. Kf4 {[%emt 0:00:32]} Qa4+ {[%emt 0:00:36]} 84. Kg5 {[%emt 0:00:23]} Qb5+ {[%emt 0:00:33]} 85. Kg4 {[%emt 0:00:22]} Qc4+ {[%emt 0:00:13]} 86. Kh3 {[%emt 0:00:53]} Qf1+ {[%emt 0:00:33]} 87. Kg4 {[%emt 0:00:52]} Qd1+ {[%emt 0:00:13]} 1/2-1/2

[Event "DVM U12w 2024"]
[Site "Bad Homburg"]
[Date "2024.12.29"]
[Round "6"]
[White "Anaparthi, Anika"]
[Black "Rutschmann, Polly"]
[Result "1-0"]
[ECO "C44"]
[WhiteElo "1052"]
[BlackElo "1072"]
[Annotator "NA RC"]
[PlyCount "49"]
[EventDate "2024.12.23"]
[EventType "team-tourn"]
[EventRounds "7"]
[EventCountry "GER"]
[SourceTitle "playchess.com"]
[Source "ChessBase"]
[SourceQuality "1"]
[TimeControl "40/5400+30:1800+30"]

1. e4 {[%emt 0:00:03]} e5 {[%emt 0:00:15]} 2. Nf3 {[%emt 0:00:08]} Nc6 {[%emt 0:00:17]} 3. d4 {[%emt 0:00:48]} exd4 {[%emt 0:01:23]} 4. Bc4 {[%emt 0:00:15]} Bc5 {[%emt 0:01:40]} 5. Ng5 {[%emt 0:00:25]} Ne5 {[%emt 0:02:14]} 6. Nxf7 {[%emt 0:01:26]} Nxf7 {[%emt 0:00:47]} 7. Bxf7+ {[%emt 0:00:08]} Kxf7 {[%emt 0:00:54]} 8. Qh5+ {[%emt 0:00:27]} Kf8 {[%emt 0:05:20]} 9. Qxc5+ {[%emt 0:00:11]} d6 {[%emt 0:02:34]} 10. Qxd4 {[%emt 0:00:23]} Nf6 {[%emt 0:02:33]} 11. O-O {[%emt 0:00:25]} Qe8 {[%emt 0:01:24]} 12. Nc3 {[%emt 0:02:17]} Qg6 {[%emt 0:03:29]} 13. Qd3 {[%emt 0:03:46]} Kf7 {[%emt 0:06:12]} 14. Bf4 {[%emt 0:08:57]} Re8 {[%emt 0:03:58]} 15. Rfe1 {[%emt 0:01:46]} Re7 {[%emt 0:01:39]} 16. Nd5 {[%emt 0:08:41]} Nxd5 {[%emt 0:02:22]} 17. Qxd5+ {[%emt 0:01:12]} Kf8 {[%emt 0:02:51]} 18. Re3 {[%emt 0:04:17]} Qg4 {[%emt 0:07:17]} 19. Rf3 {[%emt 0:04:24]} Qg6 {[%emt 0:08:01]} 20. Bxd6+ {[%emt 0:02:32]} Ke8 {[%emt 0:01:07]} 21. Bxe7 {[%emt 0:00:23]} Kxe7 {[%emt 0:02:20]} 22. Qe5+ {[%emt 0:01:06]} Be6 {[%emt 0:04:39]} 23. Rd1 {[%emt 0:01:31]} Rd8 {[%emt 0:04:07]} 24. Qxc7+ {[%emt 0:01:42]} Bd7 {[%emt 0:02:57]} 25. Qc5+ {[%emt 0:00:32]} 1-0

[Event "DVM U12w 2024"]
[Site "Bad Homburg"]
[Date "2024.12.29"]
[Round "6"]
[White "Mrugalski, Marie"]
[Black "Feldhaus, Lena"]
[Result "0-1"]
[ECO "D02"]
[WhiteElo "1052"]
[BlackElo "1539"]
[Annotator "NA RC"]
[PlyCount "28"]
[EventDate "2024.12.23"]
[EventType "team-tourn"]
[EventRounds "7"]
[EventCountry "GER"]
[SourceTitle "playchess.com"]
[Source "ChessBase"]
[SourceQuality "1"]
[TimeControl "40/5400+30:1800+30"]

1. d4 {[%emt 0:00:03]} d5 {[%emt 0:00:10]} 2. Bf4 {[%emt 0:00:08]} Nf6 {[%emt 0:00:08]} 3. e3 {[%emt 0:00:08]} Bf5 {[%emt 0:00:13]} 4. Nf3 {[%emt 0:00:13]} e6 {[%emt 0:00:19]} 5. Bd3 {[%emt 0:00:47]} Bg6 {[%emt 0:00:18]} 6. c3 {[%emt 0:00:36]} Bd6 {[%emt 0:00:13]} 7. Bg3 {[%emt 0:00:17]} Nbd7 {[%emt 0:02:27]} 8. Bxg6 {[%emt 0:03:09]} hxg6 {[%emt 0:01:22]} 9. Bxd6 {[%emt 0:00:31]} cxd6 {[%emt 0:00:26]} 10. Qd3 {[%emt 0:00:38]} a6 {[%emt 0:06:35]} 11. Nbd2 {[%emt 0:05:57]} e5 {[%emt 0:04:16]} 12. e4 {[%emt 0:07:32]} Rc8 {[%emt 0:08:51]} 13. Qe2 {[%emt 0:05:52]} Qb6 {[%emt 0:03:00]} 14. exd5 {[%emt 0:04:17]} Qxb2 {[%emt 0:08:06]} 0-1